[Event "Slovakia Open 2022"]
[Site "Bratislava"]
[Date "2022.10.01"]
[Round "7.2"]
[White "Laurusas, Tomas"]
[Black "Korobov, Anton"]
[Result "1-0"]
[ECO "D46"]
[WhiteElo "2563"]
[BlackElo "2671"]
[Annotator "TA"]
[PlyCount "93"]
[EventDate "2022.09.30"]
[EventCountry "SVK"]
[SourceTitle "playchess.com"]
[Source "ChessBase"]
[SourceQuality "1"]
[TimeControl "2700+10"]

{[%evp 21,93,0,10,0,0,0,0,0,3,0,0,0,0,0,7,0,0,0,0,0,0,-44,-52,-46,-45,-44,-41,-54,-55,-62,-65,-31,-31,-53,-51,-49,-44,-62,-62,-64,-67,-111,-74,-63,-70,-106,0,0,0,0,0,0,0,0,0,0,0,0,71,71,78,78,160,162,167,167,874,273,979,257,558,493,1185,1156]} 1. d4 {[%emt 0:00:05]} Nf6 {[%emt 0:00:02]} 2. c4 {[%emt 0:00:01]} e6 {[%emt 0:00:01]} 3. Nf3 {[%emt 0:00:01]} d5 {[%emt 0:00:03]} 4. Nc3 {[%emt 0:00:02]} c6 {[%emt 0:00:02]} 5. e3 {[%emt 0:00:12]} Nbd7 {[%emt 0:00:02]} 6. Qc2 {[%emt 0:01:17]} Bd6 {[%emt 0:00:03]} 7. Bd3 {[%emt 0:00:01]} O-O {[%emt 0:00:03]} 8. O-O {[%emt 0:00:04]} dxc4 {[%emt 0:00:02]} 9. Bxc4 {[%emt 0:00:02]} b5 {[%emt 0:00:01]} 10. Be2 {[%emt 0:00:51]} a6 {[%emt 0:00:02]} 11. Rd1 {[%emt 0:05:45]} Qc7 {[%emt 0:00:32]} 12. e4 $1 {[%emt 0:01:13][%mdl 4] now scores much better than the old 12.Ne4. D46: Semi-Slav: 5 e3 Nbd7 6 Bd3, Black avoids the Meran.} e5 $1 {[%emt 0:00:08]} 13. h3 {[%emt 0:01:43]} Re8 {[%emt 0:02:14]} 14. dxe5 {[%emt 0:02:07] The position is equal.} Nxe5 {[%emt 0:00:40]} 15. Bg5 {[%emt 0:00:02]} Nxf3+ {[%emt 0:03:53]} 16. Bxf3 {[%emt 0:00:08]} Be6 {[%emt 0:00:14]} 17. Ne2 {[%emt 0:07:03] [#]} Be5 $5 $146 {[%emt 0:05:33][%mdl 8] New and interesting.} ({Predecessor:} 17... Rad8 18. Nd4 c5 19. Nxe6 Rxe6 20. Rac1 Rde8 21. Re1 h6 22. Bd2 Bh2+ 23. Kh1 Bf4 24. Bxf4 Qxf4 25. Qxc5 Nxe4 26. Bxe4 Rxe4 27. Rxe4 Qxe4 {½-½ (31) Andersen,M (2535)-Dvirnyy,D (2543) Baku 2016}) 18. Rac1 {[%emt 0:03:45]} Rad8 {[%emt 0:00:59]} 19. Be3 {[%emt 0:01:18]} Rxd1+ {[%emt 0:01:46]} (19... Bxa2 20. b3 Qa5 21. Nd4 $16) 20. Rxd1 {[%emt 0:00:02]} c5 {[%emt 0:00:31]} (20... Bxa2 $2 21. b3 $18) 21. Bxc5 {[%emt 0:03:49]} Nd7 {[%emt 0:01:29]} 22. b4 {[%emt 0:00:25]} Nxc5 {[%emt 0:00:33]} 23. bxc5 {[%emt 0:00:02]} Bc4 {[%emt 0:00:15] A strong pair of Bishops.} 24. Nc1 {[%emt 0:00:01]} Qxc5 {[%emt 0:01:31]} 25. Nd3 {[%emt 0:00:02]} Qe7 {[%emt 0:00:25]} 26. Nxe5 {[%emt 0:00:08]} Qxe5 {[%emt 0:00:02]} 27. Be2 {[%emt 0:04:30]} Bxe2 {[%emt 0:00:56]} 28. Qxe2 $15 {[%emt 0:00:02][%mdl 4096] Endgame KQR-KQR} g6 {[%emt 0:00:36]} 29. Re1 {[%emt 0:04:03]} a5 {[%emt 0:01:48]} 30. Qd2 {[%emt 0:02:50]} b4 {[%emt 0:00:38]} 31. Qd7 {[%emt 0:00:01]} Re6 {[%emt 0:02:19]} 32. Rd1 {[%emt 0:01:02]} Kg7 {[%emt 0:00:02]} (32... h5 {feels hotter.} 33. f3 Kg7 34. Kf2 Qf6) 33. Qd5 {[%emt 0:01:28]} a4 {[%emt 0:00:30]} ({Black should try} 33... Qxd5 $17 34. exd5 Rd6) 34. Rd4 $11 {[%emt 0:01:52]} Qb8 {[%emt 0:05:51]} 35. Qa5 {[%emt 0:00:23][%csl LRa4,LRb4]} Rc6 {[%emt 0:02:21] ( -> ...Rc1+)} 36. g3 {[%emt 0:00:01]} b3 {[%emt 0:01:47]} 37. axb3 {[%emt 0:00:29]} axb3 {[%emt 0:00:53] aiming for ...b2.} 38. Rb4 {[%emt 0:00:02]} Rc1+ {[%emt 0:00:10]} 39. Kg2 {[%emt 0:00:39]} Qe8 {[%emt 0:00:03]} (39... Qd6 $11 {remains equal.}) 40. Qd5 $36 {[%emt 0:00:27][%mdl 2048] White is really pushing.} Re1 {[%emt 0:00:47]} 41. Kf3 {[%emt 0:00:19]} (41. Qxb3 Rxe4 42. Rb7 Rd4 $11) (41. Rxb3 Qxe4+ 42. Qxe4 Rxe4 $11) 41... Qc8 {[%emt 0:01:06]} ({Black should play} 41... Qe7 42. Qd4+ (42. Rxb3 Qf6+ 43. Kg2 Qa1 $16) 42... Qf6+ 43. Qxf6+ Kxf6) 42. Qd4+ $1 {[%emt 0:00:42]} Kg8 {[%emt 0:02:34][%cal Oe1d1] [#]} (42... f6 $2 43. Rb6 (43. Rxb3 Rc1 $16) 43... Rc1 44. Qxf6+ Kg8 45. Kg2 $18) 43. Qe5 $1 {[%emt 0:00:19]} f6 $2 {[%emt 0:00:01]} (43... Qf5+ 44. Qxf5 (44. exf5 Rxe5 45. fxg6 hxg6 $16) 44... gxf5) 44. Qxf6 $2 {[%emt 0:02:03]} (44. Qd5+ Kh8 45. Qd4) 44... Qe8 $2 {[%emt 0:00:10]} (44... Rd1 45. Rxb3 Rd8) 45. Qd6 $2 {[%emt 0:00:36]} (45. Rd4 b2 46. Rd8 Rxe4 47. Rxe8+ Rxe8 48. Qxb2) 45... Qf7+ $2 {[%emt 0:00:02] [#]} (45... Rd1 46. Qc5 (46. Qxd1 Qf8+ 47. Ke2 Qxb4 $11) 46... Rd7) 46. Kg2 $1 $18 {[%emt 0:00:01] White threatens Rb8+ and mate.} Re2 {[%emt 0:00:17]} (46... h5 $142 47. Qd2 Ra1) 47. Qd4 {[%emt 0:00:13] Weighted Error Value: White=0.28 (precise) /Black=0.28 (precise)} 1-0

[Event "Slovakia Open 2022"]
[Site "Bratislava"]
[Date "2022.10.01"]
[Round "7.3"]
[White "Mikrut, Dariusz"]
[Black "Leniart, Arkadiusz"]
[Result "1/2-1/2"]
[ECO "D30"]
[WhiteElo "2316"]
[BlackElo "2479"]
[Annotator "TA"]
[PlyCount "43"]
[EventDate "2022.09.30"]
[EventCountry "SVK"]
[SourceTitle "playchess.com"]
[Source "ChessBase"]
[SourceQuality "1"]
[TimeControl "2700+10"]

{[%evp 9,43,20,20,16,53,42,46,0,0,4,0,0,0,0,0,0,0,0,0,0,22,24,33,0,27,28,83,72,159,156,160,160,155,160,164,157]} 1. d4 {[%emt 0:00:03]} Nf6 {[%emt 0:00:02]} 2. c4 {[%emt 0:00:01]} e6 {[%emt 0:00:01]} 3. Nf3 {[%emt 0:00:01]} d5 {[%emt 0:00:04]} 4. Bg5 {[%emt 0:00:02]} Nbd7 {[%emt 0:00:12]} 5. e3 {[%emt 0:00:12]} h6 {[%emt 0:00:03]} 6. Bh4 {[%emt 0:00:08] D30: Queen's Gambit Declined: Systems without Nc3.} g5 {[%emt 0:02:23]} 7. Bg3 {[%emt 0:00:01]} Ne4 {[%emt 0:02:47]} 8. Nfd2 {[%emt 0:03:06] aiming for Nxe4. White is slightly better.} Nxg3 {[%emt 0:01:34]} (8... Bb4 9. cxd5 Nxg3 10. hxg3 exd5 11. Qb3 Bxd2+ 12. Nxd2 $14) 9. hxg3 {[%emt 0:00:02]} Bg7 {[%emt 0:02:03]} 10. cxd5 {[%emt 0:00:04]} exd5 {[%emt 0:00:02]} 11. Nc3 {[%emt 0:00:01]} c6 {[%emt 0:02:19]} 12. Bd3 {[%emt 0:00:14]} O-O {[%emt 0:01:34] [#]} 13. Qc2 $146 {[%emt 0:00:24]} ({Predecessor:} 13. O-O f5 14. Qc2 Qf6 15. Nf3 Qe6 16. Na4 b5 17. Nc5 Nxc5 18. Qxc5 a5 19. a4 {1-0 (40) Bryakin,M (2459)-Maltsevskaya,A (2248) Novi Sad 2020}) 13... Re8 {[%emt 0:00:03]} 14. O-O-O {[%emt 0:04:32]} a5 {[%emt 0:01:15]} 15. Kb1 {[%emt 0:00:47]} b5 {[%emt 0:01:50]} 16. Ne2 {[%emt 0:05:20]} Qf6 {[%emt 0:02:08]} 17. e4 {[%emt 0:01:59]} c5 {[%emt 0:04:22]} (17... dxe4 $11 18. Nxe4 Qe6) 18. e5 $16 {[%emt 0:05:51]} ({Of course not} 18. Bxb5 cxd4 19. Nb3 (19. exd5 $2 Rb8 $19) 19... Qxf2 $11) (18. dxc5 $2 Nxc5 19. e5 (19. Bxb5 $2 Nxe4 20. Nxe4 Rxe4 $19) 19... Rxe5 $1 20. Bh7+ (20. Qxc5 $2 Rxe2 21. Qc2 Rxf2 $19) 20... Kh8 $19) 18... Nxe5 {[%emt 0:00:02]} 19. dxe5 {[%emt 0:00:11] White is clearly better.} Rxe5 {[%emt 0:00:03] [#]} 20. Nf3 $1 {[%emt 0:01:14]} ({Don't blunder} 20. Bxb5 $2 Bf5 21. Nc3 Bxc2+ $19) 20... Re7 {[%emt 0:01:07]} 21. Nc3 {[%emt 0:00:47]} Bb7 {[%emt 0:01:34]} 22. Bh7+ {[%emt 0:11:24] Weighted Error Value: White=0.06 (flawless) /Black=0.15 (very precise)} 1/2-1/2

[Event "Slovakia Open 2022"]
[Site "Bratislava"]
[Date "2022.10.01"]
[Round "7.4"]
[White "Babula, Vlastimil"]
[Black "Kostolansky, Sebastian Lukas"]
[Result "1/2-1/2"]
[ECO "B45"]
[WhiteElo "2574"]
[BlackElo "2398"]
[Annotator "TA"]
[PlyCount "121"]
[EventDate "2022.09.30"]
[EventCountry "SVK"]
[SourceTitle "playchess.com"]
[Source "ChessBase"]
[SourceQuality "1"]
[TimeControl "2700+10"]

{[%evp 22,121,20,20,39,26,46,40,37,21,14,14,13,12,30,26,37,22,40,38,47,31,60,60,77,76,83,87,79,87,166,121,168,158,162,158,160,159,158,124,141,127,251,175,175,172,166,159,163,147,183,116,131,126,123,86,90,68,69,78,88,45,54,14,14,14,16,25,42,31,36,31,96,28,45,17,18,8,8,0,8,0,0,0,8,8,12,0,0,0,0,0,0,0,0,0,0,0,0,0,0,8]} 1. e4 {[%emt 0:00:02]} c5 {[%emt 0:00:06]} 2. Nf3 {[%emt 0:00:03][%cal Bg1f3,Bf3d4,Bd4b5,Bb5c3][%mdl 32]} e6 {[%emt 0:00:02]} 3. d4 {[%emt 0:00:01]} cxd4 {[%emt 0:00:02]} 4. Nxd4 {[%emt 0:00:02]} Nc6 {[%emt 0:00:19]} 5. Nc3 {[%emt 0:00:06]} Nf6 {[%emt 0:03:08]} 6. Ndb5 {[%emt 0:00:06]} Bb4 {[%emt 0:00:14]} 7. a3 {[%emt 0:00:01]} Bxc3+ {[%emt 0:00:43]} 8. Nxc3 {[%emt 0:00:03]} d5 {[%emt 0:00:58]} 9. exd5 {[%emt 0:00:10]} exd5 {[%emt 0:00:02]} 10. Bd3 {[%emt 0:02:08]} O-O {[%emt 0:00:19]} 11. O-O {[%emt 0:00:38]} d4 {[%emt 0:06:08] 11...Bg4 gains popularity.} 12. Ne4 {[%emt 0:03:39] Hoping for Bg5.} Nxe4 {[%emt 0:02:08] B45: Sicilian Four Knights.} 13. Bxe4 {[%emt 0:00:02]} Be6 {[%emt 0:02:35] [#]} 14. Qd3 $146 {[%emt 0:07:53]} ({Predecessor:} 14. Qh5 f5 15. Bd3 Ne5 16. Qe2 Qd5 17. Re1 Nxd3 18. cxd3 Rae8 19. Bf4 Bd7 20. Qd2 {½-½ (20) Khachiyan,M (2465)-Banawa,J (2310) Monterey Park 2003}) 14... g6 {[%emt 0:04:32] White is slightly better.} 15. Rd1 {[%emt 0:02:01]} Bd5 {[%emt 0:05:59]} 16. Bxd5 {[%emt 0:03:21]} Qxd5 {[%emt 0:00:04]} 17. Be3 {[%emt 0:00:23][%cal Re3d4]} Rad8 {[%emt 0:10:40]} 18. c3 {[%emt 0:00:11]} Rfe8 {[%emt 0:00:45]} 19. cxd4 {[%emt 0:01:46]} Re4 {[%emt 0:01:40][%cal Oc6e5]} 20. f3 {[%emt 0:00:56]} Re6 {[%emt 0:00:01][%cal Oc6e5]} 21. Rac1 {[%emt 0:04:09]} Rde8 {[%emt 0:02:46]} 22. Bf2 {[%emt 0:00:11]} Re2 {[%emt 0:00:32]} 23. Rc5 {[%emt 0:01:57]} Qa2 {[%emt 0:00:51]} 24. Rc2 $36 {[%emt 0:00:03][%mdl 2048] White is on the roll.} Rxc2 {[%emt 0:00:48]} 25. Qxc2 {[%emt 0:00:59]} Ne7 {[%emt 0:00:30]} (25... Rd8 $16) 26. Qe2 {[%emt 0:01:13][%cal Od4d5] Black must now prevent d5!} Qe6 {[%emt 0:02:15] [#]} (26... Qd5 $16 {keeps fighting.} 27. Qe5 b6) 27. Qb5 $1 $18 {[%emt 0:01:42][%csl LRb7,LRe8]} Qc6 {[%emt 0:00:37]} 28. Qxc6 {[%emt 0:00:20]} Nxc6 {[%emt 0:00:21][%mdl 4096] Endgame KRB-KRN} 29. d5 {[%emt 0:00:11]} Rd8 {[%emt 0:00:01]} 30. Kf1 {[%emt 0:00:03] White is more active.} b6 {[%emt 0:00:16]} 31. Ke2 {[%emt 0:01:24]} Re8+ {[%emt 0:00:02]} (31... Ne7 $16) 32. Be3 {[%emt 0:00:26]} Ne5 {[%emt 0:00:33]} 33. b3 {[%emt 0:01:08] Prevents Nc4.} Rd8 {[%emt 0:00:10]} 34. Bg5 {[%emt 0:00:37]} Re8 {[%emt 0:00:19]} 35. Kf2 {[%emt 0:00:35]} Kg7 {[%emt 0:00:11]} 36. d6 {[%emt 0:00:03]} (36. Bf4 $18) 36... f6 $16 {[%emt 0:00:10]} 37. Bf4 {[%emt 0:00:41] [#] d7 is the strong threat.} Nd7 {[%emt 0:00:10]} 38. b4 {[%emt 0:00:25]} g5 {[%emt 0:00:00]} 39. Be3 {[%emt 0:00:50]} Kf7 {[%emt 0:00:11]} 40. h4 {[%emt 0:00:25]} h6 {[%emt 0:00:08]} 41. a4 {[%emt 0:00:21][%cal Ba3a4,Ba4a5][%mdl 32]} Ke6 {[%emt 0:00:17]} 42. a5 {[%emt 0:00:17]} Rc8 {[%emt 0:00:03]} 43. f4 {[%emt 0:01:21][%cal Rf4g5]} Rc2+ {[%emt 0:00:28]} 44. Kf3 {[%emt 0:00:25][%cal Rf4g5]} Rc4 {[%emt 0:00:09]} 45. axb6 {[%emt 0:00:54]} (45. hxg5 {keeps more tension.} hxg5 46. fxg5 fxg5 47. Bxg5 Ne5+ 48. Ke3) 45... axb6 {[%emt 0:00:02]} 46. hxg5 {[%emt 0:00:02]} fxg5 {[%emt 0:00:02]} ({Black should play} 46... hxg5 $14 47. fxg5 fxg5) 47. fxg5 {[%emt 0:00:05]} ({Better is} 47. Rh1 $16) 47... hxg5 $11 {[%emt 0:00:12]} 48. Bxg5 {[%emt 0:00:17] next Bf4 is good for White.} (48. Rd4 $5 {[%cal Rd4c4]}) 48... Ne5+ {[%emt 0:00:01] The position is equal.} 49. Kf2 {[%emt 0:01:00]} Rxb4 {[%emt 0:00:01]} 50. Be7 {[%emt 0:00:19]} Rb2+ {[%emt 0:00:19]} 51. Kg3 {[%emt 0:00:44]} Rb3+ {[%emt 0:00:03]} 52. Kh2 {[%emt 0:01:12]} Ng4+ {[%emt 0:00:01]} 53. Kg1 {[%emt 0:00:04] White wants to mate with d7.} Kd7 {[%emt 0:00:01]} 54. Rc1 {[%emt 0:00:33]} Rb2 {[%emt 0:00:22]} 55. Bf8 {[%emt 0:00:53]} Rd2 {[%emt 0:00:38]} 56. g3 {[%emt 0:01:02]} Ne3 {[%emt 0:00:18]} 57. Rc7+ {[%emt 0:00:27]} Ke8 {[%emt 0:00:01]} 58. Bh6 {[%emt 0:00:35]} Rd1+ {[%emt 0:00:06]} 59. Kf2 {[%emt 0:00:01]} Ng4+ {[%emt 0:00:03]} 60. Ke2 {[%emt 0:00:12]} Rxd6 {[%emt 0:00:01]} 61. Bf4 {[%emt 0:00:02] Black defended with fortune.  Weighted Error Value: White=0.12 (very precise) /Black=0.12 (very precise)} 1/2-1/2

[Event "Slovakia Open 2022"]
[Site "Bratislava"]
[Date "2022.10.01"]
[Round "7.5"]
[White "Nestorenko, Dmitry"]
[Black "Kushko, Dmitriy"]
[Result "0-1"]
[ECO "B07"]
[WhiteElo "2168"]
[BlackElo "2302"]
[Annotator "TA"]
[PlyCount "124"]
[EventDate "2022.09.30"]
[EventCountry "SVK"]
[SourceTitle "playchess.com"]
[Source "ChessBase"]
[SourceQuality "1"]
[TimeControl "2700+10"]

{[%evp 11,124,37,56,10,34,0,45,-16,0,-14,0,-28,-21,-11,-3,-20,0,-14,-27,-36,-32,-27,-13,-12,-8,-14,-14,-247,-251,-255,-251,-284,-282,-279,-235,-238,-243,-236,-233,-236,-206,-206,-208,-207,-205,-208,-200,-235,-234,-225,-195,-245,-186,-193,-172,-229,-237,-230,-227,-241,-247,-240,-246,-244,-246,-239,-217,-235,-229,-241,-241,-235,-222,-233,-258,-316,-232,-235,-245,-310,-234,-208,-220,-311,-312,-293,-219,-233,-224,-241,-230,-229,-218,-215,-221,-245,-258,-254,-230,-244,-172,-193,-189,-190,0,-160,0,-252,-238,-303,-295,-435,-370,-701,-712]} 1. e4 {[%emt 0:00:04]} d6 {[%emt 0:00:01]} 2. d4 {[%emt 0:00:02]} Nf6 {[%emt 0:00:01]} 3. Nc3 {[%emt 0:00:01]} g6 {[%emt 0:00:01]} 4. Be3 {[%emt 0:00:02]} c6 {[%emt 0:00:02]} 5. f3 {[%emt 0:00:04]} b5 {[%emt 0:00:04]} 6. a3 {[%emt 0:00:01]} Nbd7 {[%emt 0:00:09]} 7. Qd2 {[%emt 0:00:22] B07: Pirc Defence: Miscellaneous Systems.} (7. g4 $14) 7... Bb7 {[%emt 0:00:03]} 8. Bd3 {[%emt 0:00:13]} a6 {[%emt 0:00:37]} 9. Nce2 {[%emt 0:01:01]} ({White should play} 9. g4 $14) 9... Bg7 {[%emt 0:00:47]} 10. Nh3 {[%emt 0:00:03] [#]} c5 $146 {[%emt 0:00:51]} ({Predecessor:} 10... e5 11. c3 O-O 12. O-O d5 13. exd5 Nxd5 14. Bh6 exd4 15. Nxd4 c5 16. Nc2 Ne5 17. Bxg7 Kxg7 {1-0 (54) Mudelsee,M (2295)-Koch,W (2312) Germany 2001}) 11. c4 {[%emt 0:01:06]} bxc4 {[%emt 0:03:45]} 12. Bxc4 {[%emt 0:00:13]} d5 {[%emt 0:03:22]} 13. exd5 {[%emt 0:02:25]} Nb6 {[%emt 0:01:21]} 14. Rc1 {[%emt 0:00:43]} cxd4 {[%emt 0:00:40]} (14... Nxc4 {seems wilder.} 15. Rxc4 cxd4 16. Bxd4 O-O) 15. Bxd4 {[%emt 0:00:22]} Nxc4 {[%emt 0:00:06]} 16. Rxc4 {[%emt 0:00:11]} Bxd5 {[%emt 0:04:29]} 17. Rc5 {[%emt 0:00:28]} Bb7 {[%emt 0:02:22]} 18. O-O {[%emt 0:03:58]} O-O {[%emt 0:00:15]} 19. Nhf4 $2 {[%emt 0:02:35]} (19. Rd1 $11 {and White stays safe.}) 19... Nd7 $19 {[%emt 0:01:26][%cal Bf6d7,Bd7c5,Bc5a4][%mdl 32]} 20. Bxg7 {[%emt 0:00:18]} Nxc5 {[%emt 0:00:02]} 21. Qc3 {[%emt 0:00:02]} Na4 {[%emt 0:06:40]} 22. Qe5 {[%emt 0:01:32]} f6 {[%emt 0:01:01]} 23. Qe3 {[%emt 0:00:02]} Rf7 {[%emt 0:00:22]} 24. Bh6 {[%emt 0:00:55]} e5 {[%emt 0:03:14]} 25. Nd3 {[%emt 0:01:23]} Nb6 {[%emt 0:00:13] [#] Hoping for ...Nc4.} 26. Nc5 {[%emt 0:00:43]} Nd5 {[%emt 0:00:28]} 27. Qb3 {[%emt 0:01:14]} Qb6 {[%emt 0:00:06]} 28. Qxb6 {[%emt 0:00:03]} Nxb6 {[%emt 0:00:01]} 29. Rd1 {[%emt 0:00:19]} Rc7 {[%emt 0:03:16]} 30. b4 {[%emt 0:00:25]} Kf7 {[%emt 0:00:22]} 31. Bc1 {[%emt 0:03:32]} (31. f4 $142) 31... Ke7 {[%emt 0:00:52]} 32. f4 {[%emt 0:00:56]} Nd7 {[%emt 0:01:48]} 33. fxe5 {[%emt 0:00:33]} (33. Be3 $142) 33... Nxc5 {[%emt 0:00:40]} 34. exf6+ {[%emt 0:00:02]} Kxf6 {[%emt 0:00:03]} 35. Bb2+ {[%emt 0:02:27]} Ke7 {[%emt 0:00:17]} 36. bxc5 {[%emt 0:00:13]} Rxc5 {[%emt 0:00:04] ...Rc2 is the strong threat.} 37. Nd4 {[%emt 0:00:39] Prevents Rc2.} Re8 {[%emt 0:01:02]} 38. h3 {[%emt 0:03:25]} Rd5 {[%emt 0:00:24]} 39. Rf1 {[%emt 0:01:25]} Rf8 {[%emt 0:00:40]} 40. Re1+ {[%emt 0:00:22]} Kd7 {[%emt 0:00:03]} 41. Re2 {[%emt 0:01:18]} a5 {[%emt 0:01:45]} 42. Rc2 {[%emt 0:01:08]} Rf4 {[%emt 0:01:35]} 43. Nb3 {[%emt 0:00:54]} Kd6 {[%emt 0:00:13] Inhibits Nc5.} 44. Bc3 {[%emt 0:03:20]} Ra4 {[%emt 0:00:13]} 45. Bb2 {[%emt 0:00:39]} Rb5 {[%emt 0:01:20]} 46. Nd4 {[%emt 0:01:24]} Rb6 {[%emt 0:00:06]} 47. Rd2 {[%emt 0:00:39]} (47. Ne2 $142) 47... Bd5 {[%emt 0:03:11][%cal Ob6b2]} 48. Ne2 {[%emt 0:02:56]} Rc4 {[%emt 0:00:25]} 49. Bg7 {[%emt 0:00:39]} Ke6 {[%emt 0:00:44]} 50. Bd4 {[%emt 0:04:05]} Rb1+ {[%emt 0:00:05]} 51. Kh2 {[%emt 0:00:15]} Bb7 {[%emt 0:00:40]} 52. Bg7 {[%emt 0:00:57]} g5 {[%emt 0:00:27]} 53. Nd4+ {[%emt 0:00:33]} Kf7 {[%emt 0:00:06]} 54. Be5 {[%emt 0:00:03]} Rb6 {[%emt 0:01:05]} 55. Rf2+ {[%emt 0:00:53]} Ke7 {[%emt 0:00:01]} 56. Re2 {[%emt 0:00:03] aiming for Bc7+.} Kd7 {[%emt 0:00:03] Prevents Bc7.} 57. Rd2 {[%emt 0:00:05]} Ke7 {[%emt 0:00:27]} 58. Re2 {[%emt 0:00:11] Threatens to win with Bc7+.} Kf7 {[%emt 0:00:04]} (58... Ra6 $17 59. g4 Kf8) 59. Rf2+ $1 {[%emt 0:00:09]} Kg6 {[%emt 0:00:02]} 60. Nf5 {[%emt 0:00:24] [#]} Re6 {[%emt 0:00:15] Against Ne7+} 61. Bd6 {[%emt 0:00:06]} (61. Bb8 {is a better defense.}) 61... Rce4 {[%emt 0:00:16] And now ...Re2 would win.} 62. Ng3 {[%emt 0:00:11] Prevents Re2.} (62. g4) 62... Rxd6 {[%emt 0:00:07] Weighted Error Value: White=0.31/Black=0.21 (precise)} 0-1